Cogmind - Beta 13 @@@ ROGUE MODE // 2024.04.19 @ 02:05:20 Player: oranges Result: Destroyed by L-41 Fighter with Axe Performance ------------- Evolutions (3) 1500 Regions Visited (13) 2600 Robots Destroyed (100) 500 Value Destroyed (3977) 3977 Prototype IDs (27) 540 Alien Tech Used (0) 0 Bonus (2587) 2587 TOTAL SCORE: 11704 Bonus ------- High Alert Combat Kills 88 Follower Combat Kills 609 Entered Garrisons 600 Used RIF Installer 1000 Aligned with FarCom 300 Friendly Fire -10 Cogmind --------- Core Integrity 0/700 Matter 300/300 Energy 100/100 System Corruption 10% Temperature Cool (0) Movement Core (450) Ox8 Location -7/Garrison Parts ------- > --- POWER (1) -------- (None) > --- PROPULSION (3) --- (None) > --- UTILITY (7) ------ Large Storage Unit Improved Melee Analysis Suite Core Analyzer Hacking Suite Hacking Suite Relay Coupler [Grunt] (31) > --- WEAPON (2) ------- Remote Datajack Great Axe > --- INVENTORY (15) --- Backup Power III Heavy Treads Actuator Array Authchip [Storage] Relay Coupler [NC] (27) Relay Coupler [Grunt] (27) Relay Coupler [Specialist] (24) Relay Coupler [Specialist] (22) Relay Coupler [Heavy] (11) PSU Rigger Gauss Cannon Mini Assault Cannon Scatter Rocket Array Chainsword Peak State ------------ > --- POWER ------------ Light Deuterium Engine > --- PROPULSION ------- Medium Treads Heavy Treads > --- UTILITY ---------- Large Storage Unit Improved Melee Analysis Suite Core Analyzer Actuator Array Hacking Suite Hacking Suite Relay Coupler [Sentry] > --- WEAPON ----------- Scatter Rocket Array Great Axe > --- INVENTORY -------- Light Nuclear Core Heavy Treads Heavy Treads Authchip [Storage] Relay Coupler [Specialist] Relay Coupler [Specialist] Relay Coupler [Heavy] PSU Rigger Gauss Cannon Mini Assault Cannon Missile Launcher Remote Datajack Chainsword [Rating: 58] Favorites ----------- Power Light Ion Engine Engine Light Ion Engine Power Core Light Nuclear Core Reactor Antimatter Reactor Propulsion Heavy Treads Treads Heavy Treads Wheel Compact Wheel Utility Large Storage Unit Device Structural Scanner Storage Large Storage Unit Processor Core Analyzer Hackware Hacking Suite Protection Light Armor Plating Weapon Katana Energy Cannon Advanced Beam Cannon Ballistic Gun Assault Rifle Ballistic Cannon Advanced Assault Cannon Launcher Grenade Launcher Special Weapon Remote Datajack Slashing Weapon Katana Special Melee Weapon Datajack Build | -11 -10 -10 -10 -9 -8 -8 -7 -7 -7 -7 -7 -7 -7 ------- Run | Yrd Mat Min Exi Min Mat Gar Fac Was Fac Gar Fac Sto Gar Slots Evolved 6 | . . . . . 4 . 2 . . . . . . Power . | . . . . . . . . . . . . . . Propulsion 1 | . . . . . 1 . . . . . . . . Utility 5 | . . . . . 3 . 2 . . . . . . Weapon . | . . . . . . . . . . . . . . Parts Attached 137 | 6 12 4 . 5 5 27 7 4 20 4 13 20 10 Power 13 | 1 1 . . . . 2 . 1 1 . 2 3 2 Engine 6 | 1 1 . . . . 1 . . . . 1 1 1 Core 5 | . . . . . . 1 . . . . 1 2 1 Reactor 2 | . . . . . . . . 1 1 . . . . Propulsion 17 | 2 . 1 . . 1 6 . 1 3 . 2 . 1 Treads 13 | . . . . . . 6 . 1 3 . 2 . 1 Leg . | . . . . . . . . . . . . . . Wheel 4 | 2 . 1 . . 1 . . . . . . . . Hover . | . . . . . . . . . . . . . . Flight . | . . . . . . . . . . . . . . Utility 40 | 1 2 1 . 4 3 6 4 2 5 1 4 5 2 Device 11 | . 1 1 . 2 1 2 2 . 1 . . 1 . Storage 4 | 1 1 . . . . . . . . . 1 1 . Processor 3 | . . . . . . 1 . . 1 . . 1 . Hackware 11 | . . . . . 1 1 1 . 1 1 2 2 2 Protection 11 | . . . . 2 1 2 1 2 2 . 1 . . Artifact . | . . . . . . . . . . . . . . Weapon 67 | 2 9 2 . 1 1 13 3 . 11 3 5 12 5 Energy Gun . | . . . . . . . . . . . . . . Energy Cannon 3 | . 1 . . . . 1 . . . . 1 . . Ballistic Gun 7 | 2 2 . . . . 3 . . . . . . . Ballistic Cannon 10 | . . . . . . 1 1 . 4 1 1 1 1 Launcher 17 | . 5 1 . . 1 3 . . 1 1 . 4 1 Special Weapon 7 | . . . . . . . . . . . 1 4 2 Impact Weapon . | . . . . . . . . . . . . . . Slashing Weapon 20 | . 1 1 . 1 . 4 1 . 5 1 2 3 1 Piercing Weapon . | . . . . . . . . . . . . . . Special Melee Weapon 3 | . . . . . . 1 1 . 1 . . . . Unidentified Prototypes 4 | . . 1 . . . . . . . . 1 2 . Parts Lost 16 | . . . . . . . . . 3 2 4 3 4 Power 4 | . . . . . . . . . . . 1 1 2 Propulsion 2 | . . . . . . . . . . . 1 . 1 Utility 9 | . . . . . . . . . 3 1 2 2 1 Weapon 1 | . . . . . . . . . . 1 . . . Highest Loss Streak 2 | . . . . . . . . . 1 2 1 2 2 To Critical Strikes . | . . . . . . . . . . . . . . Average Slot Usage (%) 91 | . 98 99 100 100 98 100 99 91 88 80 81 88 85 Engine 4 | . 14 14 14 14 9 7 . . . . 1 5 . Core 1 | . . . . . . 1 7 3 . . 2 1 6 Reactor 1 | . . . . . . . . 3 6 7 3 . . Treads 11 | . . . . . . 23 23 18 15 15 9 15 9 Wheel 7 | . 28 28 28 28 27 3 . . . . . . . Device 8 | . 11 13 14 4 17 . 2 7 9 15 9 6 5 Storage 8 | . 14 14 14 14 9 9 7 7 7 7 7 7 7 Processor 7 | . . . . . . 9 7 7 7 7 7 12 15 Hackware 12 | . . . . . 8 10 22 14 7 10 18 21 23 Protection 6 | . . . . 9 8 15 11 11 17 . 3 1 . Ballistic Gun 3 | . 20 14 14 14 1 2 . . . . . . . Ballistic Cannon 3 | . . . . . . 2 1 7 9 10 4 . 1 Launcher 3 | . 5 12 14 9 7 6 . . . . . 3 . Slashing Weapon 5 | . 1 1 . 4 9 5 7 7 3 3 4 8 8 Naked Turns . | . . . . . . . . . . . . . . Heaviest Build 59 | 11 31 42 42 42 46 43 37 53 59 52 52 43 42 Greatest Support 98 | 32 32 32 26 26 42 60 60 90 92 90 98 98 98 Greatest Overweight (x) 1 | . . 1 1 1 1 1 . . . . . . . Average Overweight (x) . | . . . 1 1 1 . . . . . . . . Largest Inventory Capacity 15 | 8 15 15 15 15 15 15 15 15 15 15 15 15 15 Average Capacity 14 | 7 14 15 15 15 15 15 15 15 15 15 15 15 15 Most Carried 15 | 6 15 15 15 15 15 15 14 15 15 15 15 15 15 Average Carried 14 | 3 11 14 14 15 13 14 13 14 14 13 14 14 14 Final Capacity 15 | 8 15 15 15 15 15 15 15 15 15 15 15 15 15 Final Carried 15 | 6 15 15 15 15 15 15 14 15 14 15 15 15 15 Class Distribution -------------------- 33% | Bothacker-Mutant 32% | Scavenger-Mutant 28% | Mutant 4% | Bothacker-Gladiator Dominant Class ---------------- Mutant | -10/Materials Mutant | -10/Mines Mutant | -10/Exiles Mutant | -9/Mines Mutant | -8/Materials Scavenger-Mutant | -8/Garrison Scavenger-Mutant | -7/Factory Scavenger-Mutant | -7/Waste Scavenger-Mutant | -7/Factory Scavenger-Mutant | -7/Garrison Bothacker-Mutant | -7/Factory Bothacker-Mutant | -7/Storage Bothacker-Mutant | -7/Garrison Resources | -11 -10 -10 -10 -9 -8 -8 -7 -7 -7 -7 -7 -7 -7 ----------- Run | Yrd Mat Min Exi Min Mat Gar Fac Was Fac Gar Fac Sto Gar Matter Collected 3448 | 161 391 109 . 79 10 373 66 289 471 81 431 583 404 Remotely . | . . . . . . . . . . . . . . Salvage Created 3308 | . 369 . . 167 44 376 21 259 394 111 329 695 543 Parts 176 | . 22 . . 13 4 25 2 2 23 5 18 51 11 Haulers Intercepted 8 | . 2 . . . . . . . 1 . 1 4 . Recyclers Shooed . | . . . . . . . . . . . . . . Parts Field Recycled . | . . . . . . . . . . . . . . Retrieved Matter . | . . . . . . . . . . . . . . Parts Self-Destructed . | . . . . . . . . . . . . . . Prevented . | . . . . . . . . . . . . . . Kills | -11 -10 -10 -10 -9 -8 -8 -7 -7 -7 -7 -7 -7 -7 ------- Run | Yrd Mat Min Exi Min Mat Gar Fac Was Fac Gar Fac Sto Gar Combat Hostiles Destroyed 66 | . 9 . . 2 1 11 . . 9 6 6 14 8 Melee 16 | . . . . . . 5 . . 1 . 2 6 2 Guns 1 | . 1 . . . . . . . . . . . . Cannons 20 | . 2 . . . . 1 . . 8 1 4 . 4 AOE 29 | . 6 . . 2 1 5 . . . 5 . 8 2 Classes Destroyed 13 | . 7 . . 1 1 2 . . 2 . . . . Worker 8 | . 1 . . . . . . . 2 . 1 4 . Builder 5 | . 1 . . 2 . . . . 1 . . 1 . Hauler 8 | . 2 . . . . . . . 1 . 1 4 . Recycler 2 | . . . . 1 . . . . . . . 1 . Operator 5 | . 1 . . . 1 . . . . . 1 2 . Watcher 6 | . 2 . . . . . 1 . 2 . . 1 . Swarmer 15 | . 3 . . . . . . . . 3 1 8 . Grunt 25 | . 6 . . 2 . 3 . . 4 2 1 3 4 Brawler 5 | . . . . . . . . . 2 . 1 . 2 Duelist 2 | . . . . . . 1 . . . . 1 . . Sentry 7 | . . . . . . 4 . . . 1 . 2 . Hunter 7 | . . . . . 1 3 . . . . 2 . 1 Programmer 5 | . . . . . . . . . 3 . . 1 1 Best Kill Streak 8 | . 5 . . 5 1 3 1 . 3 6 4 8 3 Combat Bots Only 6 | . 5 . . 2 1 3 . . 2 6 2 4 3 Max Kills in Single Turn 3 | . 2 . . 2 1 2 1 . 2 2 1 3 2 Gunslinging . | . . . . . . . . . . . . . . Exploded 2 | . 1 . . 2 1 2 . . . 2 . 2 2 Melee 1 | . . . . . . 1 . . 1 . 1 1 1 Uniques/NPCs Destroyed . | . . . . . . . . . . . . . . Combat | -11 -10 -10 -10 -9 -8 -8 -7 -7 -7 -7 -7 -7 -7 -------- Run | Yrd Mat Min Exi Min Mat Gar Fac Was Fac Gar Fac Sto Gar Hostile Shots Fired 425 | . 19 . . . . 72 . . 68 50 42 87 87 Missed 110 | . 7 . . . . 17 . . 15 21 7 24 19 Damage Taken 5114 | . 140 . . . 14 841 40 . 859 297 637 895 1391 Core 881 | . 35 . . . 14 95 . . 103 49 175 119 291 Absorbed by Shields . | . . . . . . . . . . . . . . Redirected to Shielding 79 | . . . . . . . . . 79 . . . . Regen/Repaired (Parts) 340 | . . . . . . . . . . . . 340 . Core Remaining (%) 88 | 100 . . . 86 . 80 . . . . . . . Volleys Fired 166 | . 28 . . 3 3 22 1 4 35 10 17 20 23 Largest 2 | . 2 . . 2 1 2 1 1 2 2 2 1 2 Hottest 104 | . 80 . . 50 30 104 48 48 96 96 96 50 98 Shots Fired 264 | . 54 . . 6 3 41 1 4 69 11 30 20 25 Gun 47 | . 35 . . 3 . 9 . . . . . . . Cannon 148 | . 4 . . . . 18 1 4 69 3 29 . 20 Launcher 56 | . 15 . . 3 3 14 . . . 8 . 10 3 Special 13 | . . . . . . . . . . . 1 10 2 Kinetic 184 | . 35 . . 3 . 20 1 4 69 3 29 . 20 Thermal 11 | . 4 . . . . 7 . . . . . . . Explosive 56 | . 15 . . 3 3 14 . . . 8 . 10 3 Electromagnetic . | . . . . . . . . . . . . . . Robot Hit Streak 20 | . 9 . . 4 . 18 19 20 8 8 9 7 6 Robot Miss Streak 7 | . 4 . . . . 3 . 1 7 . 2 2 3 Penetration Max 1 | . . . . . . . . . . . 1 . . Secondary Targets . | . . . . . . . . . . . . . . Shots Hit Robots 238 | . 28 . . 4 1 37 2 16 38 7 24 43 38 Core Hits 165 | . 23 . . 11 3 21 1 2 17 17 11 35 24 Critical Kills . | . . . . . . . . . . . . . . Critical Parts Destroyed . | . . . . . . . . . . . . . . Critical Strikes 21 | . . . . . . . . . 7 . 4 5 5 Blast 9 | . . . . . . . . . 6 . 2 . 1 Sever 12 | . . . . . . . . . 1 . 2 5 4 Melee Attacks 220 | . 3 4 . 2 7 21 1 13 29 1 24 60 55 Impact . | . . . . . . . . . . . . . . Slashing 213 | . 3 4 . 2 7 18 . 13 26 1 24 60 55 Piercing . | . . . . . . . . . . . . . . Sneak Attacks 18 | . 1 . . 2 1 1 . . 2 . . 10 1 Combat Hostiles 3 | . . . . . . 1 . . . . . 2 . Follow-up Attacks 11 | . . . . . . . . . . . . 1 10 Damage Inflicted 9883 | . 959 . . 318 143 1016 23 500 1286 514 656 2608 1860 Guns 302 | . 209 . . 6 . 87 . . . . . . . Cannons 2187 | . 72 . . . . 185 23 84 1031 83 438 . 271 Explosions 2916 | . 588 . . 214 78 425 . . . 431 . 863 317 Melee 4461 | . 90 . . 98 65 319 . 416 255 . 218 1728 1272 Ramming 17 | . . . . . . . . . . . . 17 . Kinetic 2346 | . 209 . . 6 . 201 23 84 1031 83 438 . 271 Thermal 143 | . 72 . . . . 71 . . . . . . . Explosive 2916 | . 588 . . 214 78 425 . . . 431 . 863 317 Electromagnetic . | . . . . . . . . . . . . . . Impact . | . . . . . . . . . . . . . . Slashing 4461 | . 90 . . 98 65 319 . 416 255 . 218 1728 1272 Piercing . | . . . . . . . . . . . . . . Highest Corruption 10 | . . . . . . . . . 4 4 8 8 10 Average Corruption 7 | . . . . . . . . . 3 4 6 8 9 Corruption Purged . | . . . . . . . . . . . . . . Corruption Blocked . | . . . . . . . . . . . . . . Effects 111 | . . . . . . . . . 12 7 27 36 29 Message Errors 30 | . . . . . . . . . 2 . 6 10 12 Matter Fused 22 | . . . . . . . . . 2 2 4 11 3 Heat Flow Errors 13 | . . . . . . . . . 2 . 2 4 5 Energy Discharges 15 | . . . . . . . . . 2 2 5 4 2 Parts Rejected 2 | . . . . . . . . . . . . 1 1 Parts Fused 2 | . . . . . . . . . . 1 1 . . Data Loss (minor) 13 | . . . . . . . . . 2 1 5 3 2 Data Loss (major) 7 | . . . . . . . . . 1 1 1 2 2 Misfires 2 | . . . . . . . . . 1 . 1 . . Alerts 3 | . . . . . . . . . . . 1 1 1 Weapon Failures 2 | . . . . . . . . . . . 1 . 1 Overload Shots . | . . . . . . . . . . . . . . Overflow Damage 365 | . 33 . . 10 35 5 . . 40 . . 160 82 Projectiles 9 | . . . . . . 1 . . 8 . . . . Explosions 33 | . 33 . . . . . . . . . . . . Melee 323 | . . . . 10 35 4 . . 32 . . 160 82 Knockbacks 21 | . . . . . . 8 . . 6 . 5 . 2 Impact . | . . . . . . . . . . . . . . Kinetic 21 | . . . . . . 8 . . 6 . 5 . 2 Secondary . | . . . . . . . . . . . . . . Self-Inflicted Damage 580 | . 28 . . . . 6 . . . 48 . 142 356 Shots 23 | . 2 . . . . 1 . . . 2 . 5 13 Rammed 3 | . . . . . . . . . . . . 3 . Targets Rammed 4 | . . . . . . . . . . . . 4 . Kicked . | . . . . . . . . . . . . . . Crushed 1 | . . . . . . . . . . . . 1 . Highest Temperature 477 | . 108 . . . . 288 . 40 477 21 213 246 257 Average Temperature 99 | . 54 . . . . 90 . 21 136 11 57 106 84 Received Heat Transfer 1125 | . 48 . . . . 216 12 . 333 75 45 168 228 Effects 9 | . . . . . . . . . 9 . . . . Shutdowns 1 | . . . . . . . . . 1 . . . . Energy Bleed 1 | . . . . . . . . . 1 . . . . Interference 2 | . . . . . . . . . 2 . . . . Matter Decay 1 | . . . . . . . . . 1 . . . . Damage (minor) 1 | . . . . . . . . . 1 . . . . Damage (major) 3 | . . . . . . . . . 3 . . . . Siege Activations . | . . . . . . . . . . . . . . Robots Corrupted . | . . . . . . . . . . . . . . Combat Hostiles . | . . . . . . . . . . . . . . Parts Fried . | . . . . . . . . . . . . . . Impact Corruptions . | . . . . . . . . . . . . . . Robots Melted . | . . . . . . . . . . . . . . Combat Hostiles . | . . . . . . . . . . . . . . Parts Melted . | . . . . . . . . . . . . . . Heat Transferred 296 | . 148 . . . . 148 . . . . . . . Parts Sabotaged . | . . . . . . . . . . . . . . Parts Stolen . | . . . . . . . . . . . . . . Parts Stripped . | . . . . . . . . . . . . . . Power Chain Reactions . | . . . . . . . . . . . . . . Alert | -11 -10 -10 -10 -9 -8 -8 -7 -7 -7 -7 -7 -7 -7 ------- Run | Yrd Mat Min Exi Min Mat Gar Fac Was Fac Gar Fac Sto Gar Peak Influence 664 | . 211 55 . 129 135 529 318 41 205 324 283 451 664 Initial 277 | . . 55 . . 50 87 277 41 1 143 170 31 163 Average 192 | . 87 39 . 51 103 296 253 23 60 269 143 289 430 Maximum Alert Level 2 | . 1 . . . . 2 1 . 1 1 1 2 2 Low Security (%) 59 | 100 98 100 . 100 100 28 9 100 99 13 86 16 14 Level 1 26 | . 1 . . . . 47 90 . . 86 13 53 23 Level 2 13 | . . . . . . 23 . . . . . 29 61 Level 3 . | . . . . . . . . . . . . . . Level 4 . | . . . . . . . . . . . . . . Level 5 . | . . . . . . . . . . . . . . High Security . | . . . . . . . . . . . . . . Max Security . | . . . . . . . . . . . . . . Squads Dispatched 25 | . 4 . . 1 1 . 2 . 5 . 4 8 . Investigation 6 | . 3 . . . . . . . 1 . 1 1 . Extermination 6 | . . . . . . . 1 . 3 . 1 1 . Reinforcement 8 | . 1 . . . 1 . 1 . 1 . 1 3 . Assault 1 | . . . . 1 . . . . . . . . . Garrison 4 | . . . . . . . . . . . 1 3 . Intercept . | . . . . . . . . . . . . . . Searches Triggered . | . . . . . . . . . . . . . . Construction Impeded . | . . . . . . . . . . . . . . Haulers Reinforced 2 | . . . . . . . . . 1 . . 1 . Active Scanning Responses . | . . . . . . . . . . . . . . Cargo Convoy Interrupts . | . . . . . . . . . . . . . . Stealth | -11 -10 -10 -10 -9 -8 -8 -7 -7 -7 -7 -7 -7 -7 --------- Run | Yrd Mat Min Exi Min Mat Gar Fac Was Fac Gar Fac Sto Gar Distress Signals 5 | . . . . . . . . . 2 . . 3 . Communications Jammed . | . . . . . . . . . . . . . . Distress Signals . | . . . . . . . . . . . . . . Times Spotted 132 | . 13 . . 5 1 12 3 1 26 7 12 34 18 Peak Tracking Total 7 | . 3 . . 4 1 4 1 1 6 6 4 7 5 Tactical Retreats 6 | . . . . . . 2 . . 2 . 1 . 1 Traps | -11 -10 -10 -10 -9 -8 -8 -7 -7 -7 -7 -7 -7 -7 ------- Run | Yrd Mat Min Exi Min Mat Gar Fac Was Fac Gar Fac Sto Gar Traps Triggered 7 | . . . . . . 1 1 . 1 2 1 1 . Indirectly . | . . . . . . . . . . . . . . Trap Hack Attempts . | . . . . . . . . . . . . . . Triggered . | . . . . . . . . . . . . . . Disarmed . | . . . . . . . . . . . . . . Reprogrammed . | . . . . . . . . . . . . . . Reused . | . . . . . . . . . . . . . . Traps Extracted . | . . . . . . . . . . . . . . Installed . | . . . . . . . . . . . . . . Triggered . | . . . . . . . . . . . . . . Objects Rigged 1 | . . . . . . 1 . . . . . . . Exploded 1 | . . . . . . 1 . . . . . . . Machines | -11 -10 -10 -10 -9 -8 -8 -7 -7 -7 -7 -7 -7 -7 ---------- Run | Yrd Mat Min Exi Min Mat Gar Fac Was Fac Gar Fac Sto Gar Machines Disabled 11 | . 1 . . . . 2 . . . 1 3 2 2 Max in Single Turn 1 | . 1 . . . . 1 . . . 1 1 1 1 Garrison Relay 4 | . . . . . . 1 . . . 1 . . 2 Machines Repaired . | . . . . . . . . . . . . . . Machines Dismantled . | . . . . . . . . . . . . . . Machines Sabotaged . | . . . . . . . . . . . . . . Overloaded Fab Kills . | . . . . . . . . . . . . . . Hacking | -11 -10 -10 -10 -9 -8 -8 -7 -7 -7 -7 -7 -7 -7 --------- Run | Yrd Mat Min Exi Min Mat Gar Fac Was Fac Gar Fac Sto Gar Machines Accessed 37 | . 7 1 1 . 2 2 1 . 5 1 4 10 3 Terminals 25 | . 7 . . . 1 2 1 . . 1 2 8 3 Fabricators 2 | . . . . . . . . . 1 . 1 . . Repair Stations 2 | . . . . . . . . . . . 1 1 . Recycling Units 1 | . . . . . . . . . 1 . . . . Scanalyzers 2 | . . . . . . . . . 2 . . . . Garrison Access 3 | . . . . . 1 . . . 1 . . 1 . Total Hacks 72 | . 19 1 1 . 3 3 2 . 10 2 10 17 4 Successful 36 | . 9 1 1 . 1 1 . . 8 1 3 9 2 Failed 36 | . 10 . . . 2 2 2 . 2 1 7 8 2 Catastrophic 10 | . 4 . . . . . 1 . . . 2 3 . Database Lockouts . | . . . . . . . . . . . . . . Manual 24 | . 14 . 1 . 1 . 2 . . . 1 5 . Terminals 45 | . 19 . . . 1 3 2 . . 2 2 12 4 Fabricators 6 | . . . . . . . . . 2 . 4 . . Repair Stations 7 | . . . . . . . . . . . 4 3 . Recycling Units 1 | . . . . . . . . . 1 . . . . Scanalyzers 6 | . . . . . . . . . 6 . . . . Garrison Access 5 | . . . . . 2 . . . 1 . . 2 . Terminal Hacks 16 | . 5 1 1 . . 1 . . . 1 . 5 2 Robot Analysis 1 | . 1 . . . . . . . . . . . . Open Door 7 | . . 1 . . . 1 . . . . . 4 1 Emergency Access Points 1 | . . . . . . . . . . . . . 1 Alert Level 1 | . 1 . . . . . . . . . . . . Unreport Threat 3 | . 2 . . . . . . . . . . 1 . Recall Reinforcements 1 | . 1 . . . . . . . . . . . . Patrol Navigation 1 | . . . . . . . . . . 1 . . . Derelict Proto ID Bank 1 | . . . 1 . . . . . . . . . . Fabricator Hacks 4 | . . . . . . . . . 2 . 2 . . Load Schematic 2 | . . . . . . . . . 1 . 1 . . Build 2 | . . . . . . . . . 1 . 1 . . Repair Station Hacks 3 | . . . . . . . . . . . 1 2 . Scan Component 2 | . . . . . . . . . . . 1 1 . Repair 1 | . . . . . . . . . . . . 1 . Recycling Unit Hacks 1 | . . . . . . . . . 1 . . . . Retrieve Matter 1 | . . . . . . . . . 1 . . . . Scanalyzer 4 | . . . . . . . . . 4 . . . . Insert Component 2 | . . . . . . . . . 2 . . . . Analyze 2 | . . . . . . . . . 2 . . . . Garrison Access Hacks 4 | . . . . . 1 . . . 1 . . 2 . Unlock Access 3 | . . . . . 1 . . . 1 . . 1 . Coupler Status 1 | . . . . . . . . . . . . 1 . Unauthorized Hacks 4 | . 4 . . . . . . . . . . . . Terminals 4 | . 4 . . . . . . . . . . . . Track 1 | . 1 . . . . . . . . . . . . Botnet 2 | . 2 . . . . . . . . . . . . Disrupt 1 | . 1 . . . . . . . . . . . . Fabricators . | . . . . . . . . . . . . . . Repair Stations . | . . . . . . . . . . . . . . Recycling Units . | . . . . . . . . . . . . . . Scanalyzers . | . . . . . . . . . . . . . . Garrison Access . | . . . . . . . . . . . . . . Data Cores Recovered 1 | . . . . . . . . . . . 1 . . Used . | . . . . . . . . . . . . . . Hacking Detections 31 | . 7 . . . 2 1 1 . 5 1 4 7 3 Full Trace Events 4 | . 2 . . . . . . . 1 . 1 . . Feedback Events . | . . . . . . . . . . . . . . Feedback Blocked . | . . . . . . . . . . . . . . Robot Schematics Acquired . | . . . . . . . . . . . . . . Robots Built . | . . . . . . . . . . . . . . Authchips . | . . . . . . . . . . . . . . Time . | . . . . . . . . . . . . . . Total Robot Build Rating . | . . . . . . . . . . . . . . Part Schematics Acquired 1 | . . . . . . . . . 1 . . . . Parts Built 2 | . . . . . . . . . . . 2 . . Authchips . | . . . . . . . . . . . . . . Time 212 | . . . . . . . . . 106 . 106 . . Total Part Build Rating 12 | . . . . . . . . . . . 12 . . Parts Repaired 1 | . . . . . . . . . . . . 1 . Time 28 | . . . . . . . . . . . . 28 . Parts Recycled . | . . . . . . . . . . . . . . Recycled Matter . | . . . . . . . . . . . . . . Retrieved Matter . | . . . . . . . . . . . . . . Retrieved Components . | . . . . . . . . . . . . . . Parts Scanalyzed 1 | . . . . . . . . . 1 . . . . Part Schematics Acquired 1 | . . . . . . . . . 1 . . . . Parts Damaged . | . . . . . . . . . . . . . . Bothacking | -11 -10 -10 -10 -9 -8 -8 -7 -7 -7 -7 -7 -7 -7 ------------ Run | Yrd Mat Min Exi Min Mat Gar Fac Was Fac Gar Fac Sto Gar Used RIF Installer 2 | . . . . . . 1 . . . 1 . . . Zone Cloak 1 | . . . . . . . . . . 1 . . . Robots Hacked 13 | . . . . . . 2 1 . 2 . 1 5 2 Non-combat . | . . . . . . . . . . . . . . Combat 13 | . . . . . . 2 1 . 2 . 1 5 2 Robot Hacks Applied 16 | . . . . . . 3 1 . 2 . 1 7 2 parse_system 2 | . . . . . . 1 . . . . . 1 . disable_weapons 1 | . . . . . . . . . . . . 1 . reboot_system 4 | . . . . . . 1 . . . . . 2 1 formatsys_high 9 | . . . . . . 1 1 . 2 . 1 3 1 Relay Couplers Released 17 | . . . . . . 4 . . . 5 . . 8 Machine Destruction 17 | . . . . . . 4 . . . 5 . . 8 Attached 8 | . . . . . . 1 1 . 1 . 2 1 2 Fabnet Peak Effective % . | . . . . . . . . . . . . . . Robots Rewired . | . . . . . . . . . . . . . . Allies Hacked . | . . . . . . . . . . . . . . Hacks Repelled . | . . . . . . . . . . . . . . Allies | -11 -10 -10 -10 -9 -8 -8 -7 -7 -7 -7 -7 -7 -7 -------- Run | Yrd Mat Min Exi Min Mat Gar Fac Was Fac Gar Fac Sto Gar Total Allies 14 | . . . . 1 . 3 1 . 2 . 1 3 3 Largest Group 4 | . . . . 1 1 3 4 3 1 . 1 3 3 Highest-Rated Group 98 | . . . . 31 28 77 98 69 23 . 32 64 88 Highest-Rated Ally 32 | . . . . 31 28 31 31 31 23 . 32 32 32 Total Orders 12 | . . 6 . 3 . . 2 . . . . 1 . STAY 1 | . . . . . . . 1 . . . . . . ROAM 1 | . . . . . . . . . . . . 1 . FOLLOW 1 | . . . . . . . 1 . . . . . . EXPLORE 4 | . . 3 . 1 . . . . . . . . . RETURN 5 | . . 3 . 2 . . . . . . . . . Ally Attacks 112 | . . . . 8 9 . 12 9 21 . 3 35 15 Total Damage 2330 | . . . . 169 146 . 192 170 264 . 104 777 508 Kills 17 | . . . . 2 1 . 1 1 1 . 1 7 3 Allies Corrupted . | . . . . . . . . . . . . . . Allies Melted . | . . . . . . . . . . . . . . Intel | -11 -10 -10 -10 -9 -8 -8 -7 -7 -7 -7 -7 -7 -7 ------- Run | Yrd Mat Min Exi Min Mat Gar Fac Was Fac Gar Fac Sto Gar Robot Analysis Total 1 | . 1 . . . . . . . . . . . . Derelict Logs Recovered 4 | . . 2 . 2 . . . . . . . . . Drone Launches 54 | . . 40 4 10 . . . . . . . . . Drone Recoveries 54 | . . 40 . 14 . . . . . . . . . Exploration | -11 -10 -10 -10 -9 -8 -8 -7 -7 -7 -7 -7 -7 -7 ------------- Run | Yrd Mat Min Exi Min Mat Gar Fac Was Fac Gar Fac Sto Gar Turns Passed 8124 | 54 533 567 549 103 184 859 443 309 1193 310 1086 1077 857 Spaces Moved 4659 | 40 411 468 513 67 134 446 268 159 604 168 514 473 394 Core 2 | 2 . . . . . . . . . . . . . Treads 2934 | . . . . . . 354 268 159 604 168 514 473 394 Legs . | . . . . . . . . . . . . . . Wheels 1723 | 38 411 468 513 67 134 92 . . . . . . . Hover . | . . . . . . . . . . . . . . Flight . | . . . . . . . . . . . . . . Fastest Speed 50 | 50 100 100 105 105 105 93 160 160 152 165 160 160 160 Average Speed 139 | 97 100 107 105 105 107 149 160 160 159 165 161 160 160 Slowest Speed 165 | 100 100 115 105 105 108 160 160 160 165 165 165 160 160 Overloaded Moves . | . . . . . . . . . . . . . . Propulsion Burnouts . | . . . . . . . . . . . . . . Robots Hopped . | . . . . . . . . . . . . . . Cave-ins Triggered . | . . . . . . . . . . . . . . Exploration Rate (%) 43 | 3 88 98 89 25 19 46 7 74 14 17 15 59 48 Regions Visited 13 Branch Regions 4 Pre-discovered Areas 1 | . . 1 . . . . . . . . . . . Known Exits Taken 5 | . . . 1 1 1 . . . 1 . . 1 . Unknown Exits Taken 4 | 1 1 1 . . . . . . . . 1 . . Scrap Searched 2 | . . 1 . 1 . . . . . . . . . Spaces Dug 125 | . . 3 . . 3 1 . . 18 . 16 80 4 Terrain Destroyed 448 | . 75 3 . 20 25 59 . 1 30 21 18 143 53 Melee 55 | . . 3 . . 3 1 . . 18 . 16 10 4 Projectile 15 | . . . . . . . . 1 12 . 2 . . AOE 378 | . 75 . . 20 22 58 . . . 21 . 133 49 Terrain Rammed . | . . . . . . . . . . . . . . Walls Destroyed . | . . . . . . . . . . . . . . Machines Disabled . | . . . . . . . . . . . . . . Actions | -11 -10 -10 -10 -9 -8 -8 -7 -7 -7 -7 -7 -7 -7 --------- Run | Yrd Mat Min Exi Min Mat Gar Fac Was Fac Gar Fac Sto Gar Total 5652 | 51 470 523 523 87 156 565 280 194 724 188 704 677 510 Wait 369 | . 3 40 9 11 1 30 . . 22 . 124 96 33 Move 4649 | 39 410 467 512 66 134 445 268 158 604 167 513 472 394 Hop . | . . . . . . . . . . . . . . Pick Up 64 | 6 11 4 1 . 5 6 2 5 6 5 6 4 3 Fast Attach 22 | 6 1 . . . . . . 1 2 . 4 7 1 Attach 24 | . 1 1 . . 4 1 2 2 4 2 3 2 2 Detach 2 | . 1 . . . . . . . . . 1 . . Swap 91 | . 10 3 . 5 1 26 5 1 14 2 6 11 7 Drop 55 | . 2 4 1 . 1 11 1 10 8 1 6 7 3 Fire 166 | . 28 . . 3 3 22 1 4 35 10 17 20 23 Melee 203 | . 3 4 . 2 7 21 1 13 29 1 24 54 44 Ram . | . . . . . . . . . . . . . . Kick . | . . . . . . . . . . . . . . Crush 4 | . . . . . . . . . . . . 4 . Escape Stasis 2 | . . . . . . 2 . . . . . . . Rewire . | . . . . . . . . . . . . . . Trap 1 | . . . . . . 1 . . . . . . . Miscellaneous . | . . . . . . . . . . . . . . Route ------- -11/Scrapyard -10/Materials (discovered 4 exits: *Mat x3 / *Min) -10/Mines (discovered 3 exits: *Mat x2 / *Exi) -10/Exiles (discovered 2 exits: *Min x2) -9/Mines -8/Materials (discovered 2 exits: Fac / Gar) -8/Garrison -7/Factory -7/Waste -7/Factory -7/Garrison -7/Factory -7/Storage -7/Garrison History --------- Turn | Location | Event 19 | -11/Scrapyard | Discovered new exit (range 15) 55 | -11/Scrapyard | Entered Materials 217 | -10/Materials | Discovered new exit (range 5) 326 | -10/Materials | Build established: Mutant 370 | -10/Materials | Discovered new exit (range 8) 452 | -10/Materials | Discovered new exit (range 10) 519 | -10/Materials | Discovered new exit (range 14) 588 | -10/Materials | Entered Mines 589 | -10/Mines | Learned location of Storage (-7) 590 | -10/Mines | Met a Derelict bent on vengeance 610 | -10/Mines | Learned Materials stockpile data 624 | -10/Mines | Found the Drone Emporium 630 | -10/Mines | Found Prototype Device 631 | -10/Mines | Identified Sensor Drone Bay 671 | -10/Mines | Discovered new exit (range 36) 699 | -10/Mines | Learned 2 Materials zone layouts 820 | -10/Mines | Discovered new exit (range 3) 825 | -10/Mines | Identified exit to Materials 945 | -10/Mines | Found a hidden stash of uninstalled traps 1151 | -10/Mines | Deemed a non-threat by the Exiles lab entrance 1151 | -10/Mines | Discovered new exit (range 5) 1155 | -10/Mines | Entered Exiles 1182 | -10/Exiles | Met 8R-AWN 1200 | -10/Exiles | Met EX-HEX 1229 | -10/Exiles | Met EX-BIN 1241 | -10/Exiles | Aligned with FarCom system 1242 | -10/Exiles | Given EX-Vault access code 1266 | -10/Exiles | Opened EX-Vault 1274 | -10/Exiles | Found PSU Rigger 1295 | -10/Exiles | Warned to stay clear of 0b10 Research branches 1323 | -10/Exiles | Met EX-DEC 1385 | -10/Exiles | Visited The Gauntlet 1549 | -10/Exiles | Discovered new exit (range 12) 1573 | -10/Exiles | Identified exit to Mines 1691 | -10/Exiles | Discovered exit to Mines (range 14) 1704 | -10/Exiles | Left Exiles lab with PSU Rigger 1704 | -10/Exiles | Entered Mines 1704 | -9/Mines | Accompanied by 4 allies 1705 | -9/Mines | Met a Derelict testing a Signal Generator 1741 | -9/Mines | Learned Materials interactive machine intel 1749 | -9/Mines | Learned 4 Materials zone layouts 1790 | -9/Mines | Discovered new exit (range 8) 1799 | -9/Mines | Identified exit to Materials 1807 | -9/Mines | Entered Materials 1807 | -8/Materials | Accompanied by 1 ally 1807 | -8/Materials | Evolved 4 slots: Propulsion x1, Utility x3 1808 | -8/Materials | Identified exit to Factory 1810 | -8/Materials | Loaded intel: 19 interactive machine locations 1991 | -8/Materials | Identified exit to Garrison 1991 | -8/Materials | Entered Garrison 1991 | -8/Garrison | Accompanied by 1 ally 2012 | -8/Garrison | Installed Relay Interface Framework 2363 | -8/Garrison | Triggered checkpoint 2505 | -8/Garrison | Discovered exit to Factory (range 12) 2705 | -8/Garrison | Garrison Relay disabled 2779 | -8/Garrison | Rescued a captive Derelict 2780 | -8/Garrison | Build established: Scavenger-Mutant 2780 | -8/Garrison | Rescued a captive Derelict 2850 | -8/Garrison | Entered Factory 2850 | -7/Factory | Accompanied by 3 allies 2850 | -7/Factory | Evolved 2 slots: Utility x2 3293 | -7/Factory | Sucked down chute 3293 | -7/Factory | Entered Waste 3293 | -7/Waste | The area was eerily silent 3323 | -7/Waste | 2 allies followed down the chute 3338 | -7/Waste | 1 allies followed down the chute 3463 | -7/Waste | A Compactor rumbled back to life 3463 | -7/Waste | Spotted C-40 Crusher 3495 | -7/Waste | Discovered new exit (range 14) 3602 | -7/Waste | Entered Factory 3602 | -7/Factory | Accompanied by 1 ally 4795 | -7/Factory | Identified exit to Garrison 4795 | -7/Factory | Entered Garrison 4830 | -7/Garrison | Expanded RIF knowledge: Zone Cloak 4840 | -7/Garrison | Triggered checkpoint 4883 | -7/Garrison | Discovered new exit (range 5) 4953 | -7/Garrison | Triggered checkpoint 4985 | -7/Garrison | Garrison Relay disabled 5105 | -7/Garrison | Entered Factory 5284 | -7/Factory | Build established: Bothacker-Mutant 5480 | -7/Factory | Garrison activated, responded to threat 5751 | -7/Factory | Fabricated Hvy. Treads? 6142 | -7/Factory | Discovered new exit (range 11) 6191 | -7/Factory | Entered Storage 6406 | -7/Storage | Core integrity fell below 50% 6619 | -7/Storage | Garrison activated, responded to threat 6880 | -7/Storage | Found Prototype Launcher 6880 | -7/Storage | Identified Scatter Rocket Array 7165 | -7/Storage | Repaired Hvy. Treads 7267 | -7/Storage | Identified exit to Garrison 7268 | -7/Storage | Entered Garrison 7370 | -7/Garrison | Build established: Bothacker-Gladiator 7374 | -7/Garrison | Triggered checkpoint 7468 | -7/Garrison | Garrison Relay disabled 7540 | -7/Garrison | Triggered checkpoint 7563 | -7/Garrison | System corruption reached 10% 7606 | -7/Garrison | Core integrity fell below 20% 7778 | -7/Garrison | Triggered checkpoint 7795 | -7/Garrison | Garrison Relay disabled 7805 | -7/Garrison | Build established: Bothacker-Mutant 7934 | -7/Garrison | Rescued a captive Derelict 7934 | -7/Garrison | Rescued a captive Derelict 8020 | -7/Garrison | Triggered checkpoint 8058 | -7/Garrison | Spotted B-75 Beast 8058 | -7/Garrison | Spotted B-75 Beast 8106 | -7/Garrison | Lost 3 allies 8125 | -7/Garrison | Destroyed by L-41 Fighter with Axe Last Messages --------------- Installing primary routines, ETC: 6. 07940_ System corrupted: Heat flow error (+129). 07940_ Guardian 4c reactivates. 07946_ Y-54 Guardian destroyed. 07949_ Acquired 26 matter. 07974_ System corrupted: Component data lost. 08020_ Beams of light sweep through the air. An alarm sounds. 08023_ Guardian 4c suffers critical hit (Burn). 08025_ G-47 Trooper destroyed. 08032_ J6UJP DN 08066_ ARWUKCDH3P0LH#R17R,JLH P21CPC9MNRY6 08069_ Guardian 4c destroyed. 08072_ 0E-H2I(l) destroyed. 08075_ 9P-IJW(g) destroyed. 08101_ Discarded Relay Coupler [Sentry]. 08107_ System corrupted: IFF burst signal emitted. 08121_ Lgt. Nuclear Core destroyed. 08124_ Hvy. Treads destroyed. 08124_ Knocked back. Map ----- +----------------------------------------------------+ | ????????????????+?????????????# ####### ####### | | ??????????????????????????????# T#????# #?????? | | ??????????????????????????????# ##????# #?????? | | ????????????????????+?????????# ####### #?????? | | ??????????????????????????????# *%" #?????? | | ??????????+??+????????????????# % ####### #?????? | | ??????????+?????????? #??????#^^ #?????# #?????? | | ???????????????????## ##""""## %#?????# #?????? | | ????????????????+??# ####### #?????? | | ?????????????????? " #?????? | | ?????????????????? + #?????? | | ???????????????????# ## ## ##########?????? | | ???????????????????# ## ## ###????????????? | | ??????????????????Y" #????????????? | | ???????????????????" #????????????? | | ??????????????????Y" #????????????? | | ?????????????????" #????????????? | | ???????????????# ## ## ###????????????? | | ############## ## ## ##########?????? | | [!% % BB ####### | | %*% [ BB " | | [[ !!!#####[%####### = ####"## ####### | | ??+???????#% #?????# g##BB ## ##??# ## #?????? | | ??????????# #?????# ##BB% ## #???# ## #?????? | | ??????????# #?????# ##;##### #???# ## #?????? | | ??????????# ####### #;@#???# ##### ## #?????? | | ??????????# " " g l#???# + ## ####### | | ??????????# ####### ####???# ##### " " " | | ??????????# #?????# #??????# #???#### ##### # | | ??+???????# #?????# #??????# #??????# #???# # | | ?????????? ???? #??????# ????? #???# # | | ????????? ??? #??????# ???? ??? # | | ???????? ? #??????####???#### ##??### | | ???????#### ####+#### #????????????????# #?????? | | ??????????# #???????? #????????????????# #?????? | | ??????????# "???????? #????????????????# ?????? | | ?+????+???+ "?+?????? #????????????????# #?????? | | ??????????# "???????? #????????????????# #?????? | | ??????????# ????????? #????????????????# #?????? | | ??????????? ????????? #????????????????# ?????? | | ??????????? ????????? ?????????????????? ?????? | | ??????????? ????????????????????????????###?????? | | ?????????????????????????????????????????????????? | | ?????????????????????????????????????????????????? | | ?????????????????????????????????????????????????? | | ?????????????????????????????????????????????????? | | ?????????????????????????????????????????????????? | | ?????????????????????????????????????????????????? | | ?????????????????????????????????????????????????? | | ?????????????????????????????????????????????????? | +----------------------------------------------------+ Best States ------------- Heat Dissipation 34 Energy Generation 21 Energy Capacity 325 Matter Stores 300 Matter Capacity 300 Sight Range 16 Terrain Scan Density 10 ECM Strength 1 Armor Coverage 450 Propulsion Shielding 66 Evasion (%) 40 Targeting Accuracy 5 Melee Accuracy 6 Core Analysis 6 Recoil Reduction 3 Offensive Hacking 20 Relay Coupler Types 2 Relay Coupler Value 52 Authchip Count 1 Item Schematics ----------------- Hvy. Treads | -7/Factory | Scanalyzed Robot Schematics ------------------ None Fabricated ------------ Hvy. Treads | x2 | -7/Factory Alien Tech Used ----------------- None Achievements -------------- Assimilation Complete Factory Defaults Please Form A Line Release The Drones! Challenges ------------ None Game ------ Seed PrecisionEtherialPod Manual? 0 Play Time 02:04:58 Cumulative 22.9 hours Start 2024.04.18 @ 23:56:56 End 2024.04.19 @ 02:05:20 Sessions 1 Manual Loads 0 Difficulty Rogue Special Mode None Game No. 15 Rogue 15 Adventurer 0 Explorer 0 Win Type - Total 1 Types 1/0/0/0/0/0/0/0/0 Lore% 23 Gallery% 19 Achievement% 28 Wizard Run 0 Options --------- Layout 0 ASCII 0 Keyboard 0 Movement Mouse Keybinds 0 Fullscreen 2 Font 24/Smallcaps Map View 76x50 Zoom Use 0% Tactical HUD 1 Map Filters NONE Filters NONE Steam 0 RUN: 935cfcf2-437d-4b98-a982-a7da451ce3cb